fUSD/lending_fUSD_20251031
["ID","MTS","AMOUNT","RATE_DAILY","PERIOD"]
[392790588,1761952239916,-3089.0,0.00017143,2]
[392790589,1761952239926,-266.24048925,0.00017176,5]
[392790590,1761952239935,-500.0,0.000172,2]
[392790591,1761952239945,-212.94,0.00017213,2]
[392790592,1761952239954,-1299.73,0.00017217,2]
[392790593,1761952239964,-161.66589727,0.00017258,2]
[392790594,1761952239973,-1000.0,0.00017362,2]
[392790595,1761952239982,-587.0,0.00017436,2]
[392790596,1761952239991,-346.92554585,0.00017489,2]
[392790597,1761952240000,-670.58624095,0.0001749,2]
[392790598,1761952240009,-1299.73,0.00017491,2]
[392790599,1761952240019,-617.40005154,0.00017491,2]
[392790600,1761952240028,-837.19944395,0.00017534,2]
[392790601,1761952240038,-1173.8,0.00017604,2]
[392790602,1761952240050,-403.0,0.000177,5]
[392790603,1761952240060,-1000.0,0.00017748,2]
[392790604,1761952240070,-67266.9468352,0.00017754,2]
[392790605,1761952240080,-54395.6408682,0.00017754,2]
[392790606,1761952240092,-1209.7461364,0.00017754,2]
[392790607,1761952240102,-1299.76850813,0.00017765,2]
[392790608,1761952240112,-500.0,0.00017773,2]
[392790609,1761952240122,-274.5399141,0.00017773,2]
[392790610,1761952240133,-500.0,0.00017773,2]
[392790611,1761952240143,-500.0,0.00017773,2]
[392790612,1761952240153,-500.0,0.00017773,2]
[392790613,1761952240163,-500.0,0.00017773,2]
[392790614,1761952240173,-500.0,0.00017773,2]
[392790615,1761952240183,-1893.27125268,0.0001783,2]
[392790616,1761952240193,-3752.1277169,0.00017943,2]
[392790617,1761952240204,-212.94,0.00017996,2]
[392790618,1761952240213,-155.0,0.00017999,2]
[392790620,1761952240223,-150.21506427,0.00018,2]
[392790622,1761952240232,-299.7999999,0.00018,2]
[392790623,1761952240242,-150.0,0.00018,2]
[392790624,1761952240251,-150.0,0.00018,2]
[392790625,1761952240260,-150.0,0.00018,2]
[392790626,1761952240269,-82525.1849787,0.00018,2]
[392790627,1761952240279,-204.743211,0.00018,2]
[392790628,1761952240289,-640.24385345,0.00018039,2]
[392790629,1761952240298,-1000.0,0.00018082,2]
[392790630,1761952240307,-1761.74119247,0.000181,2]
[392790631,1761952240317,-736.0,0.00018165,2]
[392790632,1761952240327,-277.35679052,0.00018182,2]
[392790633,1761952240336,-273.26149957,0.00018245,2]
[392790634,1761952240346,-1000.0,0.00018321,2]
[392790635,1761952240355,-758.43650264,0.00018321,2]
[392790636,1761952240365,-510.85208282,0.00018321,2]
[392790637,1761952240375,-1000.0,0.00018321,2]
[392790638,1761952240384,-1000.0,0.00018321,2]
[392790639,1761952240395,-693.09802121,0.00018321,2]
[392790640,1761952240404,-3445.13,0.00018356,2]
[392790641,1761952240414,-15009.28462,0.00018369,2]
[392790642,1761952240424,-12137.3080583,0.00018369,2]
[392790643,1761952240434,-269.9308491,0.00018369,2]
[392790644,1761952240443,-155.41,0.00018405,2]
[392790645,1761952240453,-151.969834,0.0001857,3]
[392790646,1761952240462,-176.599764,0.0001857,3]
[392790647,1761952240471,-663.93287602,0.00018587,2]
[392790648,1761952240481,-225.75074642,0.00018594,4]
[392790649,1761952240491,-837.2128583,0.000186,2]
[392790650,1761952240500,-151.969834,0.00018628,2]
[392790651,1761952240509,-176.599764,0.00018628,2]
[392790652,1761952240518,-1000.0,0.0001876,2]
[392790653,1761952240533,-212.94,0.00018778,2]
[392790654,1761952240542,-151.24,0.000188,2]
[392790655,1761952240552,-151.24,0.000188,2]
[392790656,1761952240561,-151.24,0.000188,2]
[392790657,1761952240571,-151.24,0.000188,2]
[392790658,1761952240579,-151.24,0.000188,2]
[392790659,1761952240589,-151.24,0.000188,2]
[392790660,1761952240599,-151.24,0.000188,2]
[392790661,1761952240608,-151.24,0.000188,2]
[392790662,1761952240617,-151.24,0.000188,2]
[392790663,1761952240628,-151.24,0.000188,2]
[392790664,1761952240637,-151.24,0.000188,2]
[392790665,1761952240647,-151.24,0.000188,2]
[392790666,1761952240662,-151.24,0.000188,2]
[392790667,1761952240671,-151.24,0.000188,2]
[392790668,1761952240680,-151.24,0.000188,2]
[392790669,1761952240691,-151.24,0.000188,2]
[392790670,1761952240702,-151.24,0.000188,2]
[392790671,1761952240711,-151.24,0.000188,2]
[392790672,1761952240721,-151.24,0.000188,2]
[392790673,1761952240731,-151.24,0.000188,2]
[392790674,1761952240741,-151.24,0.000188,2]
[392790675,1761952240750,-151.24,0.000188,2]
[392790676,1761952240759,-151.24,0.000188,2]
[392790677,1761952240769,-151.24,0.000188,2]
[392790678,1761952240779,-151.24,0.000188,2]
[392790679,1761952240788,-151.24,0.000188,2]
[392790680,1761952240798,-151.24,0.000188,2]
[392790681,1761952240807,-151.24,0.000188,2]
[392790683,1761952240816,-151.24,0.000188,2]
[392790684,1761952240826,-151.24,0.000188,2]
[392790685,1761952240835,-151.24,0.000188,2]
[392790686,1761952240845,-151.24,0.000188,2]
[392790687,1761952240855,-151.24,0.000188,2]
[392790688,1761952240864,-151.24,0.000188,2]
[392790689,1761952240875,-151.24,0.000188,2]
[392790690,1761952240885,-151.24,0.000188,2]
[392790691,1761952240895,-151.24,0.000188,2]
[392790692,1761952240905,-151.24,0.000188,2]
[392790693,1761952240915,-151.24,0.000188,2]
[392790694,1761952240926,-151.24,0.000188,2]
[392790695,1761952240936,-151.24,0.000188,2]
[392790696,1761952240947,-151.24,0.000188,2]
[392790697,1761952240958,-151.24,0.000188,2]
[392790698,1761952240968,-151.24,0.000188,2]
[392790699,1761952240978,-151.24,0.000188,2]
[392790700,1761952240988,-151.24,0.000188,2]
[392790701,1761952240998,-151.24,0.000188,2]
[392790702,1761952241007,-151.24,0.000188,2]
[392790703,1761952241016,-151.24,0.000188,2]
[392790704,1761952241027,-151.24,0.000188,2]
[392790705,1761952241037,-151.24,0.000188,2]
[392790706,1761952241045,-151.24,0.000188,2]
[392790707,1761952241056,-151.24,0.000188,2]
[392790708,1761952241066,-151.24,0.000188,2]
[392790709,1761952241077,-163.08705764,0.00018818,2]
[392790710,1761952241087,-359.76179104,0.00018858,2]
[392790711,1761952241099,-1502.48144832,0.00018868,2]
[392790712,1761952241110,-1009.6043264,0.00018868,2]
[392790713,1761952241120,-1500.0,0.00018868,2]
[392790714,1761952241130,-150.0,0.00018973,2]
[392790715,1761952241140,-151.24,0.0001899,2]
[392790716,1761952241149,-151.24,0.0001899,2]
[392790717,1761952241159,-151.24,0.0001899,2]
[392790718,1761952241168,-151.24,0.0001899,2]
[392790719,1761952241177,-151.24,0.0001899,2]
[392790720,1761952241186,-151.24,0.0001899,2]
[392790721,1761952241196,-1500.0,0.00019,5]
[392790722,1761952241205,-5117.09683533,0.00019,2]
[392790723,1761952241214,-130407.33435359,0.00019,2]
[392790724,1761952241223,-130407.33435359,0.00019,2]
[392790725,1761952241232,-130407.33435359,0.00019,2]
[392790726,1761952241241,-2486.85275823,0.00019,2]
[392790727,1761952241251,-568.43730542,0.00019,2]
[392790728,1761952241259,-300.0,0.00019,2]
[392790729,1761952241270,-354.17921069,0.0001901,7]
[392790730,1761952241279,-528.0,0.00019091,2]
[392790731,1761952241288,-1000.0,0.00019099,2]
[392790732,1761952241298,-688.49839244,0.00019135,2]
[392790733,1761952241307,-945.57701412,0.00019178,2]
[392790734,1761952241317,-151.0,0.00019178,2]
[392790735,1761952241326,-2000.27,0.00019178,2]
[392790736,1761952241345,-1659.03,0.00019339,2]
[392790737,1761952241355,-1173.8,0.00019365,2]
[392790738,1761952241364,-621.78829552,0.00019384,2]
[392790739,1761952241373,-1586.86,0.00019416,2]
[392790740,1761952241382,-340.06811858,0.00019416,2]
[392790741,1761952241392,-1000.0,0.00019438,2]
[392790742,1761952241401,-150.0,0.00019479,2]
[392790743,1761952241411,-150.0,0.00019479,2]
[392790744,1761952241420,-150.0,0.00019479,2]
[392790745,1761952241429,-150.0,0.00019479,2]
[392790746,1761952241439,-150.0,0.00019479,2]
[392790747,1761952241449,-150.0,0.00019479,2]
[392790748,1761952241458,-150.0,0.00019479,2]
[392790749,1761952241467,-150.0,0.00019479,2]
[392790750,1761952241476,-150.0,0.00019479,2]
[392790751,1761952241486,-150.0,0.00019479,2]
[392790752,1761952241495,-150.0,0.00019479,2]
[392790753,1761952241504,-607.0,0.00019479,2]
[392790754,1761952241514,-3420.0,0.00019479,2]
[392790755,1761952241523,-820.0,0.00019479,2]
[392790756,1761952241533,-573.0,0.00019479,2]
[392790757,1761952241542,-1314.0,0.00019479,2]
[392790758,1761952241551,-1594.0,0.00019479,2]
[392790759,1761952241561,-1271.0,0.00019479,2]
[392790760,1761952241570,-819.0,0.00019479,2]
[392790761,1761952241579,-2139.0,0.00019479,2]
[392790762,1761952241589,-6468.0,0.00019479,2]
[392790763,1761952241598,-559.0,0.00019479,2]
[392790764,1761952241607,-6630.0,0.00019479,2]
[392790765,1761952241616,-203.46321275,0.00019521,2]
[392790766,1761952241625,-287.61899177,0.00019551,2]
[392790767,1761952241635,-212.94,0.0001956,2]
[392790768,1761952241644,-158.81,0.00019561,2]
[392790769,1761952241654,-1252.0,0.00019562,2]
[392790770,1761952241663,-161.66589727,0.00019616,2]
[392790771,1761952241672,-1031.39,0.00019652,2]
[392790772,1761952241682,-713.97283296,0.00019683,2]
[392790773,1761952241691,-156.587,0.00019726,2]
[392790774,1761952241700,-178.07383585,0.0001989,2]
[392790775,1761952241709,-151.24,0.0001989,2]
[392790776,1761952241718,-4872.13443084,0.000199,3]
[392790777,1761952241727,-1203.83,0.00019925,2]
[392790778,1761952241737,-517.06,0.00019925,2]
[392790779,1761952241746,-176.63,0.00019925,2]
[392790780,1761952241755,-300.0,0.00019925,2]
[392790781,1761952241764,-414.99,0.00019925,2]
[392790782,1761952241773,-293.5,0.00019925,2]
[392790783,1761952241783,-151.24,0.0001994,2]
[392790784,1761952241793,-151.24,0.0001994,2]
[392790785,1761952241803,-151.24,0.0001994,2]
[392790786,1761952241813,-151.24,0.0001994,2]
[392790787,1761952241823,-151.24,0.0001994,2]
[392790788,1761952241834,-151.24,0.0001994,2]
[392790789,1761952241843,-151.24,0.0001994,2]
[392790790,1761952241853,-471993.46253116,0.0001995,15]
[392790791,1761952241862,-151.24,0.0001999,2]
[392790792,1761952241871,-151.24,0.0001999,2]
[392790793,1761952241881,-9655.02566734,0.0002,2]
[392790794,1761952241891,-1518.4069816,0.0002,2]
[392790795,1761952241901,-13674.26428767,0.0002,2]
[392790796,1761952241910,-4653.86638029,0.0002,2]
[392790797,1761952241920,-94333.75415827,0.0002,5]
[392790798,1761952241930,-564.72471224,0.0002,14]
[392790799,1761952241940,-2156.72093052,0.0002,3]
[392790800,1761952241950,-2899.92697867,0.0002,7]
[392790801,1761952241960,-491.82959249,0.0002,10]
[392790802,1761952241971,-522.53568981,0.0002,7]
[392790803,1761952241980,-7230.80949204,0.0002,10]
[392790804,1761952241990,-2792.32367375,0.0002,2]
[392790805,1761952242005,-176.599764,0.0002,5]
[392790806,1761952242014,-200.0,0.0002,2]
[392790807,1761952242025,-1000.0,0.0002,7]
[392790808,1761952242034,-1000.0,0.00020116,2]
[392790809,1761952242044,-612.25,0.00020187,2]
[392790810,1761952242053,-373.07297731,0.00020227,2]
[392790811,1761952242063,-695.39793187,0.00020229,2]
[392790812,1761952242073,-740.38982778,0.00020231,2]
[392790813,1761952242084,-162.380719,0.00020274,2]
[392790814,1761952242095,-212.94,0.00020343,2]
[392790815,1761952242106,-155.41,0.00020453,2]
[392790816,1761952242116,-21300.07,0.00020548,2]
[392790817,1761952242124,-767.7842514,0.00020779,2]
[392790818,1761952242133,-1000.0,0.00020795,2]
[392790819,1761952242143,-168.3888056,0.00020822,2]
[392790820,1761952242153,-225.97649717,0.0002083,7]
[392790821,1761952242162,-1000.0,0.00020835,2]
[392790822,1761952242172,-298.26089446,0.0002092,2]
[392790823,1761952242183,-1367.94530613,0.00021,2]
[392790824,1761952242195,-1181.15455055,0.00021,2]
[392790825,1761952242205,-194.9662443,0.00021,2]
[392790826,1761952242216,-160.0,0.00021,7]
[392790827,1761952242226,-7292.79384357,0.00021,2]
[392790828,1761952242235,-500.0,0.00021,2]
[392790829,1761952242244,-350.0,0.00021,2]
[392790830,1761952242253,-151.24,0.00021058,2]
[392790831,1761952242262,-10355.21,0.00021068,2]
[392790832,1761952242272,-670.0,0.00021074,2]
[392790833,1761952242282,-212.94,0.00021125,2]
[392790834,1761952242291,-1173.8,0.00021125,2]
[392790835,1761952242300,-796.19226871,0.00021327,2]
[392790836,1761952242310,-174.61919141,0.0002137,2]
[392790837,1761952242319,-500.0,0.00021397,2]
[392790838,1761952242328,-891.01670954,0.000215,2]
[392790839,1761952242338,-163.08705764,0.00021506,2]
[392790840,1761952242348,-386.87667747,0.00021596,2]
[392790841,1761952242357,-176.599764,0.0002164,3]
[392790842,1761952242366,-151.969834,0.0002164,3]
[392790843,1761952242375,-152.39,0.00021644,2]
[392790844,1761952242385,-825.65138265,0.00021875,2]
[392790845,1761952242394,-5000.0,0.00021918,2]
[392790846,1761952242404,-600.0,0.00021918,4]
[392790847,1761952242413,-600.0,0.00021918,4]
[392790848,1761952242422,-600.0,0.00021918,4]
[392790849,1761952242430,-600.0,0.00021918,4]
[392790850,1761952242440,-600.0,0.00021918,4]
[392790851,1761952242449,-600.0,0.00021918,4]
[392790852,1761952242458,-600.0,0.00021918,4]
[392790853,1761952242467,-600.0,0.00021918,4]
[392790854,1761952242476,-600.0,0.00021918,4]
[392790855,1761952242486,-600.0,0.00021918,4]
[392790856,1761952242495,-600.0,0.00021918,4]
[392790857,1761952242505,-600.0,0.00021918,4]
[392790858,1761952242514,-600.0,0.00021918,4]
[392790859,1761952242524,-600.0,0.00021918,4]
[392790860,1761952242533,-600.0,0.00021918,4]
[392790861,1761952242542,-600.0,0.00021918,4]
[392790862,1761952242551,-163.23512837,0.00021918,2]
[392790863,1761952242560,-181.08010149,0.00021918,2]
[392790864,1761952242569,-161.66589727,0.00021974,2]
[392790865,1761952242578,-4354.84300716,0.00022,4]
[392790866,1761952242587,-10346.04,0.00022,7]
[392790867,1761952242597,-2370.43439838,0.00022,2]
[392790868,1761952242608,-1380.17670079,0.00022,15]
[392790869,1761952242619,-160.97,0.00022,2]
[392790870,1761952242629,-162.77906388,0.00022,7]
[392790871,1761952242638,-489.4381376,0.000221,2]
[392790872,1761952242648,-237.82240055,0.0002211,2]
[392790873,1761952242657,-644.79446246,0.00022123,2]
[392790874,1761952242666,-178.0738358,0.00022193,2]
[392790875,1761952242675,-151.969834,0.00022255,2]
[392790876,1761952242684,-176.599764,0.00022255,2]
[392790877,1761952242699,-309.29654756,0.00022289,2]
[392790878,1761952242710,-176.599764,0.00022365,5]
[392790879,1761952242720,-414.99,0.00022392,2]
[392790880,1761952242730,-187.78006525,0.00022466,2]
[392790881,1761952242742,-150.0,0.00022479,2]
[392790882,1761952242754,-150.0,0.00022479,2]
[392790883,1761952242765,-150.0,0.00022479,2]
[392790884,1761952242778,-150.0,0.00022479,2]
[392790885,1761952242788,-150.0,0.00022479,2]
[392790886,1761952242799,-150.0,0.00022479,2]
[392790887,1761952242811,-150.0,0.00022479,2]
[392790888,1761952242821,-150.0,0.00022479,2]
[392790889,1761952242831,-607.0,0.00022479,2]
[392790890,1761952242841,-3420.0,0.00022479,2]
[392790891,1761952242851,-820.0,0.00022479,2]
[392790892,1761952242860,-573.0,0.00022479,2]
[392790893,1761952242870,-1314.0,0.00022479,2]
[392790894,1761952242879,-1594.0,0.00022479,2]
[392790895,1761952242890,-1271.0,0.00022479,2]
[392790896,1761952242900,-819.0,0.00022479,2]
[392790897,1761952242910,-2139.0,0.00022479,2]
[392790898,1761952242921,-6468.0,0.00022479,2]
[392790899,1761952242934,-559.0,0.00022479,2]
[392790900,1761952242943,-6630.0,0.00022479,2]
[392790901,1761952242952,-21922.68264798,0.000225,2]
[392790902,1761952242962,-161.514277,0.000225,2]
[392790903,1761952242971,-952.38,0.00022638,2]
[392790904,1761952242980,-1395.66,0.00022643,2]
[392790905,1761952242989,-697.83,0.00022643,2]
[392790906,1761952242998,-338.78,0.00022643,2]
[392790907,1761952243008,-517.50775534,0.0002271,2]
[392790908,1761952243017,-500.0,0.00022892,2]
[392790909,1761952243026,-9064.60982997,0.000229,2]
[392790910,1761952243035,-401.19111454,0.00022965,2]
[392790911,1761952243044,-721.12765535,0.00022968,2]
[392790912,1761952243053,-37297.90904371,0.00023,2]
[392790913,1761952243062,-1000.0,0.00023,14]
[392790915,1761952243071,-435.3144005,0.00023,2]
[392790917,1761952243080,-997.20878214,0.00023,2]
[392790919,1761952243089,-400.0,0.00023,2]
[392790921,1761952243098,-170.0,0.00023,7]
[392790923,1761952243107,-194.72792766,0.00023014,2]
[392790925,1761952243117,-2559.0334135,0.000231,2]
[392790927,1761952243127,-626.45324299,0.00023132,2]
[392790929,1761952243136,-155.41,0.00023133,2]
[392790931,1761952243145,-161.96918179,0.00023154,2]
[392790933,1761952243155,-10346.04,0.000232,7]
[392790935,1761952243164,-40677.48021183,0.000232,2]
[392790938,1761952243336,-201.93286099,0.00023562,2]
[392790939,1761952243369,-320.74051982,0.00023658,2]
[392790940,1761952243379,-155.41,0.00023767,2]
[392790941,1761952243388,-1157.43,0.00023836,2]
[392790942,1761952243398,-152.0,0.00023857,3]
[392790943,1761952243407,-209.40437684,0.0002411,2]
[392790944,1761952243417,-163.08705765,0.00024194,2]
[392790945,1761952243426,-161.66589727,0.00024333,2]
[392790946,1761952243436,-416.03518578,0.00024334,2]
[392790947,1761952243446,-12153.27889294,0.00024366,10]
[392790949,1761952243704,-2645.60110706,0.00024366,10]
[392790950,1761952243714,-3567.06269294,0.000244,7]
[392790951,1761952244011,-216.89158,0.00015141,2]
[392790952,1761952244023,-1804.89708015,0.000244,7]
[392790953,1761952244036,-4974.08022691,0.000244,7]
[392790954,1761952244047,-152.0,0.00024493,4]
[392790955,1761952244056,-178.0738358,0.00024497,2]
[392790956,1761952244068,-520.24,0.00024658,2]
[392790957,1761952244078,-1000.0,0.00024658,2]
[392790958,1761952244088,-217.15233878,0.00024658,2]
[392790959,1761952244098,-180.10948012,0.00024662,2]
[392790960,1761952244107,-161.514277,0.0002471,3]
[392790961,1761952244116,-176.599764,0.0002471,3]
[392790962,1761952244125,-151.969834,0.0002471,3]
[392790963,1761952244134,-151.969834,0.0002473,5]
[392790964,1761952244143,-176.599764,0.0002473,5]
[392790965,1761952244152,-153.340322,0.000248,7]
[392790966,1761952244162,-154.47121,0.000248,7]
[392790967,1761952244171,-156.543432,0.000248,7]
[392790968,1761952244181,-151.0,0.000248,7]
[392790969,1761952244192,-151.0,0.000248,7]
[392790970,1761952244201,-151.0,0.000248,7]
[392790971,1761952244211,-151.0,0.000248,7]
[392790972,1761952244220,-151.0,0.000248,7]
[392790973,1761952244229,-151.0,0.000248,7]
[392790974,1761952244239,-160.181407,0.000248,7]
[392790975,1761952244248,-151.0,0.000248,7]
[392790976,1761952244257,-151.0,0.000248,7]
[392790977,1761952244267,-151.0,0.000248,7]
[392790978,1761952244276,-151.0,0.000248,7]
[392790979,1761952244285,-151.0,0.000248,7]
[392790980,1761952244294,-151.0,0.000248,7]
[392790981,1761952244303,-151.0,0.000248,7]
[392790982,1761952244313,-151.0,0.000248,7]
[392790983,1761952244323,-151.0,0.000248,7]
[392790984,1761952244332,-151.0,0.000248,7]
[392790985,1761952244341,-151.0,0.000248,7]
[392790986,1761952244352,-151.0,0.000248,7]
[392790987,1761952244362,-151.0,0.000248,7]
[392790988,1761952244371,-151.0,0.000248,7]
[392790989,1761952244381,-151.0,0.000248,7]
[392790990,1761952244391,-151.0,0.000248,7]
[392790991,1761952244400,-173.970033,0.000248,7]
[392790992,1761952244410,-151.0,0.000248,7]
[392790993,1761952244420,-151.0,0.000248,7]
[392790994,1761952244430,-151.0,0.000248,7]
[392790995,1761952244440,-151.0,0.000248,7]
[392790996,1761952244449,-151.0,0.000248,7]
[392790997,1761952244459,-151.0,0.000248,7]
[392790998,1761952244469,-151.0,0.000248,7]
[392790999,1761952244478,-151.0,0.000248,7]
[392791000,1761952244488,-161.972815,0.000248,7]
[392791001,1761952244497,-151.0,0.000248,7]
[392791002,1761952244507,-171.477867,0.000248,7]
[392791003,1761952244516,-151.0,0.000248,7]
[392791004,1761952244526,-152.771293,0.000248,7]
[392791005,1761952244535,-151.0,0.000248,7]
[392791006,1761952244544,-153.429283,0.000248,7]
[392791007,1761952244554,-151.0,0.000248,7]
[392791008,1761952244564,-151.0,0.000248,7]
[392791009,1761952244573,-151.0,0.000248,7]
[392791010,1761952244583,-297.406466,0.000248,7]
[392791011,1761952244592,-170.213072,0.000248,7]
[392791012,1761952244602,-156.746692,0.000248,7]
[392791013,1761952244611,-151.0,0.000248,7]
[392791014,1761952244620,-151.0,0.000248,7]
[392791015,1761952244630,-151.0,0.000248,7]
[392791016,1761952244639,-159.346201,0.000248,7]
[392791017,1761952244648,-151.0,0.000248,7]
[392791018,1761952244658,-151.0,0.000248,7]
[392791019,1761952244667,-151.0,0.000248,7]
[392791020,1761952244677,-151.0,0.000248,7]
[392791021,1761952244688,-156.271373,0.000248,7]
[392791022,1761952244700,-151.0,0.000248,7]
[392791023,1761952244710,-160.694986,0.000248,7]
[392791024,1761952244719,-157.899438,0.000248,7]
[392791025,1761952244728,-151.0,0.000248,7]
[392791026,1761952244738,-152.326873,0.000248,7]
[392791027,1761952244748,-151.0,0.000248,7]
[392791028,1761952244757,-152.624748,0.000248,7]
[392791029,1761952244769,-151.0,0.000248,7]
[392791030,1761952244779,-151.0,0.000248,7]
[392791031,1761952244788,-158.9468,0.000248,7]
[392791032,1761952244797,-151.0,0.000248,7]
[392791033,1761952244806,-151.0,0.000248,7]
[392791034,1761952244815,-151.0,0.000248,7]
[392791035,1761952244825,-151.0,0.000248,7]
[392791036,1761952244834,-151.0,0.000248,7]
[392791037,1761952244843,-151.0,0.000248,7]
[392791038,1761952244855,-151.0,0.000248,7]
[392791039,1761952244866,-151.0,0.000248,7]
[392791040,1761952244876,-151.0,0.000248,7]
[392791041,1761952244885,-151.0,0.000248,7]
[392791042,1761952244895,-152.70355,0.000248,7]
[392791043,1761952244906,-158.954398,0.000248,7]
[392791044,1761952244915,-151.0,0.000248,7]
[392791045,1761952244924,-160.32193,0.000248,7]
[392791046,1761952244934,-151.0,0.000248,7]
[392791047,1761952244943,-151.0,0.000248,7]
[392791048,1761952244952,-151.0,0.000248,7]
[392791049,1761952244964,-151.0,0.000248,7]
[392791050,1761952244975,-151.0,0.000248,7]
[392791051,1761952244985,-151.0,0.000248,7]
[392791052,1761952244996,-151.0,0.000248,7]
[392791053,1761952245007,-151.0,0.000248,7]
[392791054,1761952245017,-155.805714,0.000248,7]
[392791055,1761952245027,-242.3091,0.000248,7]
[392791056,1761952245036,-151.0,0.000248,7]
[392791057,1761952245046,-242.3091,0.000248,7]
[392791058,1761952245055,-278.12884,0.000248,7]
[392791059,1761952245064,-242.3091,0.000248,7]
[392791060,1761952245073,-151.0,0.000248,7]
[392791061,1761952245082,-242.3091,0.000248,7]
[392791062,1761952245091,-151.0,0.000248,7]
[392791063,1761952245101,-151.0,0.000248,7]
[392791064,1761952245110,-151.0,0.000248,7]
[392791065,1761952245120,-151.0,0.000248,7]
[392791066,1761952245129,-151.0,0.000248,7]
[392791067,1761952245138,-151.0,0.000248,7]
[392791068,1761952245147,-349.657752,0.000248,7]
[392791069,1761952245157,-349.657752,0.000248,7]
[392791070,1761952245166,-349.657752,0.000248,7]
[392791071,1761952245175,-349.657752,0.000248,7]
[392791072,1761952245184,-151.0,0.000248,7]
[392791073,1761952245193,-151.0,0.000248,7]
[392791074,1761952245202,-151.0,0.000248,7]
[392791075,1761952245211,-151.0,0.000248,7]
[392791076,1761952245220,-153.692738,0.000248,7]
[392791077,1761952245229,-151.0,0.000248,7]
[392791078,1761952245239,-151.0,0.000248,7]
[392791079,1761952245249,-154.647681,0.000248,7]
[392791080,1761952245260,-152.030253,0.000248,7]
[392791081,1761952245270,-151.0,0.000248,7]
[392791082,1761952245280,-151.0,0.000248,7]
[392791083,1761952245289,-151.0,0.000248,7]
[392791084,1761952245298,-258.584772,0.000248,7]
[392791085,1761952245307,-151.0,0.000248,7]
[392791086,1761952245316,-151.0,0.000248,7]
[392791087,1761952245325,-151.0,0.000248,7]
[392791088,1761952245335,-151.0,0.000248,7]
[392791089,1761952245343,-152.55367,0.000248,7]
[392791090,1761952245353,-151.0,0.000248,7]
[392791091,1761952245362,-151.0,0.000248,7]
[392791092,1761952245371,-151.0,0.000248,7]
[392791093,1761952245381,-151.0,0.000248,7]
[392791094,1761952245391,-158.729556,0.000248,7]
[392791095,1761952245400,-250.029375,0.000248,7]
[392791096,1761952245410,-151.0,0.000248,7]
[392791097,1761952245419,-151.0,0.000248,7]
[392791098,1761952245428,-151.0,0.000248,7]
[392791099,1761952245437,-151.0,0.000248,7]
[392791100,1761952245446,-37197.12874333,0.000248,2]
[392791101,1761952245498,-3898.32312226,0.000248,2]
[392791102,1761952246037,-718.69253116,0.00015293,2]
[392791103,1761952246047,-7623.02372969,0.000248,2]
[392791129,1761952250318,411.1091626,0.00030136,120]